lending/lending_fUSD_20240510
["ID","MTS","AMOUNT","RATE_DAILY","PERIOD"]
[326786275,1715364884768,642.75426477,0.00011702,2]
[326786276,1715364886875,788.69267776,0.00011702,2]
[326786277,1715364887460,537.03498854,0.00011702,2]
[326786278,1715364890175,200.72270333,0.00011702,2]
[326786279,1715364893090,409.26681316,0.00011702,2]
[326786280,1715364893126,8360.93923829,0.00011702,2]
[326786281,1715364894575,155.0,0.00011702,2]
[326786282,1715364897298,2846.8771,0.00011622,2]
[326786283,1715364949446,162.41965931,0.00011702,2]
[326786284,1715364954094,164.65,0.00011628,2]
[326786285,1715364955135,377.62684727,0.00011702,2]
[326786286,1715364955854,488.3397664,0.00011702,2]
[326786287,1715364958257,1379.42241151,0.00011702,2]
[326786288,1715364962463,155.0,0.00011702,2]
[326786289,1715364963354,642.75426477,0.00011702,2]
[326786290,1715364964730,800.0,0.00011699,2]
[326786291,1715364966069,155.0,0.00011702,2]
[326786292,1715364969014,788.69267776,0.00011702,2]
[326786293,1715364978460,170.45,9.35e-05,2]
[326786294,1715364991326,7508.65350991,0.00011702,2]
[326786295,1715365006795,19474.82300591,0.00011702,2]
[326786296,1715365029362,2423.17,0.00011688,2]
[326786297,1715365029659,377.62684727,0.00011702,2]
[326786298,1715365036774,1379.42241151,0.00011702,2]
[326786299,1715365052278,155.0,0.00011702,2]
[326786300,1715365062166,237.03062149,0.00011702,2]
[326786301,1715365130924,1000.0,0.00011681,2]
[326786303,1715365162286,550.68,0.00011658,2]
[326786304,1715365162696,550.68,0.00011661,2]
[326786305,1715365162952,550.68,0.00011664,2]
[326786306,1715365163226,550.68,0.00011667,2]
[326786307,1715365163640,550.68,0.0001167,2]
[326786308,1715365163879,550.68,0.00011673,2]
[326786309,1715365164490,550.68,0.00011676,2]
[326786310,1715365165146,550.68,0.00011679,2]
[326786311,1715365165236,550.68,0.00011682,2]
[326786312,1715365165305,550.68,0.00011686,2]
[326786313,1715365165388,550.68,0.00011689,2]
[326786314,1715365165515,550.68,0.00011692,2]
[326786315,1715365165741,550.68,0.00011695,2]
[326786316,1715365166124,550.68,0.00011698,2]
[326786317,1715365166449,550.68,0.00011701,2]
[326786318,1715365169333,3057.79124914,0.00011675,2]
[326786319,1715365184447,200.0,0.00011424,2]
[326786320,1715365252608,154.87,0.000115,2]
[326786321,1715365252866,154.87,0.00011574,2]
[326786322,1715365253148,154.87,0.00011649,2]
[326786324,1715365273278,250.0,0.00011171,2]
[326786326,1715365314831,1708.40754509,0.00011702,2]
[326786327,1715365365984,675.61,0.00011216,2]
[326786328,1715365416417,704.62,0.00011216,2]
[326786329,1715365448061,183.09,8.975e-05,2]
[326786330,1715365492706,170.45,8.998e-05,2]
[326786331,1715365557133,183.922,0.00011688,2]
[326786333,1715365630205,438.76,0.00011243,2]
[326786334,1715365630426,438.76,0.00011246,2]
[326786335,1715365630662,438.76,0.00011249,2]
[326786336,1715365630922,438.76,0.00011252,2]
[326786337,1715365631284,438.76,0.00011255,2]
[326786338,1715365632197,438.76,0.00011258,2]
[326786339,1715365632274,438.76,0.00011261,2]
[326786340,1715365632581,438.76,0.00011264,2]
[326786341,1715365632639,438.76,0.00011267,2]
[326786342,1715365632728,438.76,0.0001127,2]
[326786343,1715365632989,438.76,0.00011272,2]
[326786344,1715365633348,438.76,0.00011275,2]
[326786345,1715365633582,438.76,0.00011278,2]
[326786346,1715365633871,438.76,0.00011281,2]
[326786347,1715365634112,438.76,0.00011284,2]
[326786348,1715365635095,438.76,0.00011287,2]
[326786349,1715365635177,438.76,0.0001129,2]
[326786350,1715365635390,438.76,0.00011293,2]
[326786351,1715365635447,438.76,0.00011296,2]
[326786352,1715365635579,438.76,0.00011299,2]
[326786353,1715365646443,477.65,0.00011243,2]
[326786354,1715365673744,250.0,0.00011285,2]
[326786355,1715365724587,314.41,0.00011286,2]
[326786356,1715365726059,154.87,0.00011393,2]
[326786357,1715365726296,154.87,0.00011512,2]
[326786358,1715365726794,154.87,0.00011631,2]
[326786359,1715365749477,179.9588821,0.00011285,2]
[326786361,1715365806742,759.73621,0.000115,2]
[326786365,1715365832237,-363.920388,0.00011703,2]
[326786402,1715365838839,-13.70645927,0.00011703,2]
[326786403,1715365838849,-550.68,0.00011704,2]
[326786404,1715365838858,-334.36260949,0.00011706,2]
[326786405,1715365838867,-305.84203485,0.00011706,2]
[326786406,1715365838877,-157.25568847,0.00011706,2]
[326786407,1715365838886,-273.01542621,0.00011706,2]
[326786408,1715365838895,-155.08169243,0.00011706,2]
[326786409,1715365838904,-170.65190534,0.00011706,2]
[326786410,1715365838914,-175.72161395,0.00011706,2]
[326786411,1715365838923,-200.85074316,0.00011706,2]
[326786412,1715365838932,-7405.15511986,0.00011706,2]
[326786413,1715365838940,-210.10375186,0.00011706,2]
[326786414,1715365838950,-410.50405682,0.00011706,2]
[326786415,1715365838958,-163.54988866,0.00011706,2]
[326786416,1715365838967,-487.62420811,0.00011706,2]
[326786417,1715365838976,-199.09597223,0.00011706,2]
[326786418,1715365838986,-443.98297885,0.00011706,2]
[326786419,1715365838995,-256.01328472,0.00011706,2]
[326786420,1715365839005,-155.5240566,0.00011706,2]
[326786421,1715365839015,-1894.33999764,0.00011706,2]
[326786422,1715365839025,-882.98616143,0.00011706,2]
[326786423,1715365839035,-281.4075877,0.00011706,2]
[326786424,1715365839044,-184.11129393,0.00011706,2]
[326786425,1715365839057,-1228.56861276,0.00011706,2]
[326786426,1715365839068,-539.20765181,0.00011706,2]
[326786427,1715365839078,-832.6965,0.00011706,2]
[326786428,1715365839089,-550.68,0.00011707,2]
[326786429,1715365839099,-1441.02605907,0.00011707,2]
[326786430,1715365839110,-64041.72079729,0.00011708,2]
[326786431,1715365839120,-550.68,0.0001171,2]
[326786432,1715365839130,-817.62019879,0.00011712,2]
[326786433,1715365839140,-550.68,0.00011713,2]
[326786434,1715365839149,-270.37569364,0.00011714,2]
[326786435,1715365839159,-534.58535291,0.00011714,2]
[326786436,1715365839169,-204.26842196,0.00011714,2]
[326786437,1715365839179,-341.96790398,0.00011714,2]
[326786438,1715365839190,-4413.23799296,0.00011714,2]
[326786439,1715365839201,-159.42166515,0.00011714,2]
[326786440,1715365839211,-1270.37516817,0.00011714,2]
[326786441,1715365839222,-262.25935508,0.00011714,2]
[326786442,1715365839234,-203.12197274,0.00011714,2]
[326786443,1715365839244,-622.39504904,0.00011714,2]
[326786444,1715365839255,-1214.6351373,0.00011714,2]
[326786445,1715365839267,-222.27538174,0.00011714,2]
[326786446,1715365839277,-155.0,0.00011714,2]
[326786447,1715365839287,-2427.8033923,0.00011714,2]
[326786448,1715365839298,-1767.33942278,0.00011714,2]
[326786449,1715365839311,-502.29836421,0.00011714,2]
[326786450,1715365839322,-155.0,0.00011714,2]
[326786451,1715365839333,-2182.52647844,0.00011714,2]
[326786452,1715365839344,-210.00334834,0.00011714,2]
[326786453,1715365839354,-6449.82290462,0.00011714,2]
[326786454,1715365839364,-9471.07723907,0.00011714,2]
[326786455,1715365839374,-242.23105719,0.00011714,2]
[326786456,1715365839384,-301.98,0.00011714,2]
[326786457,1715365839395,-226.37,0.00011714,2]
[326786458,1715365839406,-448.38,0.00011714,2]
[326786459,1715365839415,-550.68,0.00011716,2]
[326786460,1715365839425,-200.27554196,0.0001172,2]
[326786461,1715365839434,-200.261691,0.0001172,2]
[326786462,1715365839444,-2216.32339775,0.0001172,2]
[326786463,1715365839454,-317.67550535,0.0001172,2]
[326786464,1715365839464,-156.85703674,0.0001172,2]
[326786465,1715365839473,-155.15285508,0.0001172,2]
[326786466,1715365839484,-174.84052728,0.0001172,2]
[326786467,1715365839493,-307.84437331,0.0001172,2]
[326786468,1715365839503,-2304.91758473,0.00011721,2]
[326786469,1715365839513,-1115.47393966,0.00011722,2]
[326786470,1715365839523,-158.28,0.00011722,2]
[326786471,1715365839532,-154.87,0.0001175,2]
[326786472,1715365839542,-800.0,0.00011781,2]
[326786473,1715365839553,-154.87,0.00011868,2]
[326786474,1715365839563,-154.87,0.00011987,2]
[326786475,1715365839573,-1398.59305501,0.00012,2]
[326786476,1715365839583,-1000.0,0.00012,2]
[326786477,1715365839593,-1489.49213559,0.00012,2]
[326786478,1715365839603,-171.28,0.00012449,2]
[326786479,1715365839613,-251.74141407,0.000125,2]
[326786480,1715365839623,-1561.86172371,0.00012629,2]
[326786481,1715365839633,-477.65,0.00012648,2]
[326786482,1715365839643,-156.06605412,0.0001278,2]
[326786483,1715365839653,-225.98513495,0.0001278,2]
[326786484,1715365839664,-322.52570113,0.0001278,2]
[326786485,1715365839674,-3502.08126514,0.0001278,2]
[326786486,1715365839684,-1369.426,0.00012799,2]
[326786487,1715365839694,-1000.0,0.00012799,2]
[326786488,1715365839704,-356.50824992,0.0001287,2]
[326786489,1715365839714,-156.8,0.00012889,2]
[326786490,1715365839724,-264.3773,0.00012898,2]
[326786491,1715365839733,-21109.2183,0.00012899,2]
[326786492,1715365839743,-15575.2141,0.00012899,2]
[326786493,1715365839754,-8390.93807736,0.00012899,2]
[326786494,1715365839767,-175611.59212264,0.00012899,2]
[326786495,1715365839777,-1000.0,0.00012899,2]
[326786496,1715365839786,-500.0,0.000129,2]
[326786497,1715365839796,-24714.70968045,0.000129,2]
[326786498,1715365839807,-171.46382334,0.000129,2]
[326786499,1715365839817,-312.88532722,0.000129,2]
[326786500,1715365839826,-7500.0,0.000129,2]
[326786501,1715365839835,-188.96003174,0.000129,2]
[326786502,1715365839844,-183.9896046,0.000129,2]
[326786503,1715365839854,-572.24471514,0.000129,2]
[326786504,1715365839863,-792.26692,0.000129,2]
[326786505,1715365839872,-403.15388543,0.000129,2]
[326786506,1715365839881,-4972.07632966,0.000129,2]
[326786507,1715365839892,-2398.39561542,0.000129,2]
[326786508,1715365839902,-792.26693,0.0001297,2]
[326786509,1715365839911,-4725.11809052,0.00012986,2]
[326786510,1715365839921,-156.8,0.0001299,2]
[326786511,1715365839930,-156.8,0.0001299,2]
[326786512,1715365839939,-151.39,0.0001299,2]
[326786513,1715365839949,-151.39,0.0001299,2]
[326786514,1715365839959,-151.39,0.0001299,2]
[326786515,1715365839968,-151.39,0.0001299,2]
[326786516,1715365839978,-151.39,0.0001299,2]
[326786517,1715365839987,-151.39,0.0001299,2]
[326786518,1715365839997,-6772.1381064,0.00012996,2]
[326786519,1715365840006,-1863.3930591,0.00012996,2]
[326786520,1715365840016,-207.18111686,0.00012998,2]
[326786521,1715365840026,-161.37158293,0.00012998,2]
[326786522,1715365840035,-535.95397382,0.00012998,2]
[326786523,1715365840044,-155.0,0.00012998,2]
[326786524,1715365840056,-685.3229922,0.00012998,2]
[326786525,1715365840066,-255.70906809,0.00012998,2]
[326786526,1715365840076,-503.85224682,0.00012998,2]
[326786527,1715365840086,-158.24340433,0.00012999,2]
[326786528,1715365840096,-176.54714802,0.00012999,2]
[326786529,1715365840105,-176.15985539,0.00012999,2]
[326786530,1715365840115,-308.80368967,0.00012999,2]
[326786531,1715365840125,-266.38602155,0.00012999,2]
[326786532,1715365840135,-155.30871402,0.00012999,2]
[326786533,1715365840145,-155.0,0.00012999,2]
[326786534,1715365840155,-206.25145359,0.00012999,2]
[326786535,1715365840165,-5861.29139766,0.00012999,2]
[326786536,1715365840175,-207.77106734,0.00012999,2]
[326786537,1715365840184,-1577.0,0.00013,2]
[326786538,1715365840201,-508181.03258566,0.00013,2]
[326786539,1715365840213,-60373.00000005,0.00013,2]
[326786540,1715365840226,-284.86739574,0.00013,2]
[326786541,1715365840238,-528.02122,0.00013,2]
[326786542,1715365842291,-247610.50385308,0.00013,2]
[326786543,1715365842405,-5196.0,0.00013,2]
[326786544,1715365842417,-6807.5000025,0.00013,2]
[326786545,1715365842429,-3464.94284763,0.00013,2]
[326786546,1715365842441,-725.496,0.00013,2]
[326786547,1715365842454,-181485.0,0.00013,2]
[326786548,1715365842465,-18591.7959477,0.00013,2]
[326786576,1715365843760,-5861.29139766,0.00012999,2]
[326786577,1715365843770,-112575.1704394,0.00013,2]
[326786578,1715365844256,-112501.80599429,0.00013,2]
[326786579,1715365844267,-259187.30587803,0.00013,2]
[326786584,1715365846534,-626.97887009,0.00013,2]
[326786585,1715365846547,-3191.73032909,0.00013,2]
[326786586,1715365846561,-11663.99999984,0.00013,2]
[326786587,1715365846572,-12306.00000001,0.00013,2]
[326786588,1715365846584,-1313.57153753,0.00013,2]
[326786593,1715366173376,-377.62684727,0.00011799,2]
[326786594,1715366173406,-222.37315273,0.000118,2]
[326786598,1715366557893,183.09,9.676e-05,2]
[326786600,1715366755953,-7194.6473171,0.000118,2]
[326786656,1715367039910,-7786.8341439,0.00012008,2]
[326786657,1715367039920,-250.0,0.00012016,2]
[326786658,1715367039930,-449.39,0.00012016,2]
[326786659,1715367039940,-11686.77,0.00012092,2]
[326786660,1715367039949,-371.02,0.00012093,2]
[326786661,1715367039959,-250.0,0.00012103,2]
[326786662,1715367039970,-286.59,0.00012149,2]
[326786663,1715367039980,-9197.2538822,0.00012348,7]
[326786664,1715367039989,-1000.0,0.000127,2]
[326786665,1715367039999,-1000.0,0.000127,2]
[326786666,1715367040008,-800.0,0.00012732,2]
[326786667,1715367040018,-3502.08126514,0.00012765,2]
[326786668,1715367040028,-476.3707,0.00012799,2]
[326786669,1715367040038,-1059.6838459,0.0001286,2]
[326786670,1715367040047,-3000.0,0.0001287,2]
[326786671,1715367040057,-16241.9082,0.00012894,2]
[326786672,1715367040067,-500.0,0.00012895,2]
[326786673,1715367040076,-1000.0,0.00012895,2]
[326786674,1715367040086,-500.0,0.00012896,2]
[326786675,1715367040096,-500.0,0.00012896,2]
[326786676,1715367040105,-500.0,0.000129,2]
[326786677,1715367040115,-25557.87493363,0.000129,2]
[326786678,1715367040125,-171.46382334,0.000129,2]
[326786679,1715367040135,-413.5232386,0.000129,2]
[326786680,1715367040145,-312.88532722,0.000129,2]
[326786681,1715367040154,-188.96003174,0.000129,2]
[326786682,1715367040163,-183.9896046,0.000129,2]
[326786683,1715367040173,-1925.32826854,0.000129,2]
[326786684,1715367040183,-2398.39561542,0.000129,2]
[326786685,1715367040193,-203.03478331,0.000129,2]
[326786686,1715367040202,-519.12024619,0.000129,2]
[326786687,1715367040211,-7500.0,0.000129,2]
[326786688,1715367040221,-873.14147814,0.000129,2]
[326786689,1715367040230,-4725.11809052,0.00012986,2]
[326786690,1715367040239,-151.51,0.0001299,2]
[326786691,1715367040248,-151.51,0.0001299,2]
[326786692,1715367040258,-151.51,0.0001299,2]
[326786693,1715367040268,-151.51,0.0001299,2]
[326786694,1715367040277,-151.51,0.0001299,2]
[326786695,1715367040287,-151.51,0.0001299,2]
[326786696,1715367040297,-151.51,0.0001299,2]
[326786697,1715367040307,-151.51,0.0001299,2]
[326786698,1715367040316,-151.51,0.0001299,2]
[326786699,1715367040326,-151.51,0.0001299,2]
[326786700,1715367040335,-151.51,0.0001299,2]
[326786701,1715367040345,-151.51,0.0001299,2]
[326786702,1715367040354,-151.51,0.0001299,2]
[326786703,1715367040365,-151.51,0.0001299,2]
[326786704,1715367040374,-151.51,0.0001299,2]
[326786705,1715367040384,-151.51,0.0001299,2]
[326786707,1715367040393,-151.51,0.0001299,2]
[326786709,1715367040403,-8581.1537715,0.00012991,2]
[326786711,1715367040412,-232.97836448,0.00012993,2]
[326786712,1715367040422,-8881.90488874,0.00012993,2]
[326786714,1715367040433,-229.34211279,0.00012994,2]
[326786716,1715367040443,-61492.62534088,0.00012994,2]
[326786719,1715367040456,-35490.95901932,0.00012994,2]
[326786721,1715367040466,-4481.7802214,0.00012994,2]
[326786723,1715367040476,-207.77106734,0.00012999,2]
[326786725,1715367040486,-5861.29139766,0.00012999,2]
[326786727,1715367040495,-1665.0,0.00013,2]
[326786728,1715367040505,-531312.38673125,0.00013,2]
[326786740,1715367041462,-606.945,0.00013,2]
[326786741,1715367041476,-3081.59999997,0.00013,2]
[326786742,1715367042549,-1881.51,0.00013,2]
[326786743,1715367042577,-579.22086335,0.00013,2]
[326786744,1715367042592,-435.63174168,0.00013,2]
[326786745,1715367042604,-4327.15,0.00013,2]
[326786750,1715367044266,-655032.65357898,0.00013,2]
[326786751,1715367044278,-118436.46183706,0.00013,2]
[326786773,1715367046510,-373.90977624,0.00013,2]
[326786774,1715367046522,-348.61171013,0.00013,2]
[326786775,1715367046533,-377.25988799,0.00013,2]
[326786776,1715367046544,-1454.29999999,0.00013,2]
[326786777,1715367046556,-14455.50723691,0.00013,2]
[326786778,1715367046590,-1518.225,0.00013,2]
[326786785,1715367128916,-6212.11693923,0.00012899,2]
[326786786,1715367128941,-5132.56405191,0.000129,2]
[326786787,1715367128965,-325.0484757,0.000129,2]
[326786788,1715367128989,-183.98960459,0.000129,2]
[326786789,1715367129013,-203.03478331,0.000129,2]
[326786790,1715367129039,-572.56871432,0.00012998,7]
[326786791,1715367129065,-503.85224682,0.00012999,2]
[326786792,1715367129089,-649.22705888,0.00012999,2]
[326786793,1715367129222,-207.77106734,0.00012999,2]
[326786794,1715367129312,-5861.29139766,0.00012999,2]
[326786795,1715367129339,-1501.0,0.00013,2]
[326786796,1715367129369,-111452.88834314,0.00013,2]
[326786797,1715367149796,-7000.0,0.00012894,2]
[326786828,1715368234435,-295.47712755,0.00012194,2]
[326786829,1715368234447,-178.14163047,0.00012194,2]
[326786830,1715368234457,-1047.19,0.00012229,2]
[326786831,1715368234467,-250.0,0.00012294,2]
[326786832,1715368234476,-538.95357639,0.00012427,2]
[326786833,1715368234486,-229.27,0.00012474,2]
[326786834,1715368234496,-298.92,0.00012528,2]
[326786835,1715368234506,-771.60769029,0.00012688,2]
[326786836,1715368234516,-5545.03876858,0.00012894,2]
[326786837,1715368234527,-1256.0721124,0.00012894,2]
[326786838,1715368234539,-960.42655982,0.00012894,2]
[326786839,1715368234551,-1954.06113,0.00012894,2]
[326786840,1715368234562,-265.440746,0.00012894,2]
[326786853,1715368238590,-479.23585153,0.00012894,2]
[326786856,1715368238601,-3648.94313167,0.00012894,2]
[326786859,1715368238611,-105429.6839,0.00012894,2]
[326786861,1715368238620,-18387.88288797,0.00012894,2]
[326786864,1715368238633,-26297.15481203,0.00012894,2]
[326786865,1715368238642,-500.0,0.00012896,2]
[326786866,1715368238652,-500.0,0.000129,2]
[326786867,1715368238661,-7500.0,0.000129,2]
[326786868,1715368238670,-171.47681867,0.000129,2]
[326786870,1715368238679,-26937.61579961,0.000129,2]
[326786872,1715368238688,-413.5232386,0.000129,2]
[326786873,1715368238698,-312.88532722,0.000129,2]
[326786874,1715368238707,-203.03478331,0.000129,2]
[326786875,1715368238716,-873.14147814,0.000129,2]
[326786876,1715368238725,-188.96003174,0.000129,2]
[326786877,1715368238735,-190.07388218,0.000129,2]
[326786878,1715368238744,-183.9896046,0.000129,2]
[326786879,1715368238753,-519.12024619,0.000129,2]
[326786880,1715368238763,-4725.11809052,0.00012986,2]
[326786881,1715368238772,-151.51,0.0001299,2]
[326786882,1715368238781,-151.51,0.0001299,2]
[326786883,1715368238791,-151.51,0.0001299,2]
[326786884,1715368238800,-151.51,0.0001299,2]
[326786885,1715368238810,-151.51,0.0001299,2]
[326786886,1715368238819,-151.51,0.0001299,2]
[326786887,1715368238828,-8609.9531743,0.00012994,2]
[326786888,1715368238837,-78287.6893475,0.00012994,2]
[326786889,1715368238847,-17827.9506816,0.00012994,2]
[326786890,1715368238856,-69288.6761967,0.00012994,2]
[326786891,1715368238866,-1517.6553904,0.00012994,2]
[326786892,1715368238875,-567.22644914,0.00012998,7]
[326786893,1715368238885,-229.34211279,0.00012998,2]
[326786894,1715368238894,-232.97836448,0.00012998,2]
[326786895,1715368238904,-30000.00543281,0.00012998,2]
[326786896,1715368238913,-8881.90488874,0.00012998,2]
[326786897,1715368238923,-522.78326127,0.00012998,2]
[326786898,1715368238932,-207.77106734,0.00012999,2]
[326786899,1715368238943,-5861.29139766,0.00012999,2]
[326786900,1715368238955,-1467.0,0.00013,2]
[326786901,1715368238965,-228481.39199371,0.00013,2]
[326786902,1715368238975,-7509.83070935,0.00013,2]
[326786903,1715368238986,-173.31130324,0.00013,2]
[326786904,1715368238995,-1376.28612306,0.00013,2]
[326786905,1715368239005,-299.82252952,0.00013,2]
[326786906,1715368239014,-336.02607527,0.00013,2]
[326786907,1715368239024,-547.73087551,0.00013,2]
[326786908,1715368239034,-188.65310695,0.00013,2]
[326786909,1715368239044,-46178.75384282,0.00013,2]
[326786920,1715368239316,-20.91839047,0.00013,2]
[326786922,1715368239328,-1978.40158812,0.00013,2]
[326786924,1715368239340,-304.375,0.00013,2]
[326786926,1715368239352,-504.21309168,0.00013,2]
[326786928,1715368239364,-586.27968751,0.00013,2]
[326786931,1715368239377,-1517.50982453,0.00013,2]
[326786937,1715368244031,-207.77106734,0.00012999,2]
[326786938,1715368244040,-96.40217866,0.00013,2]
[326786939,1715368244052,-462651.3700037,0.00013,2]
[326787000,1715368245069,-379.9422459,0.000129,2]
[326787003,1715368245082,-1214.3,0.000129,2]
[326787040,1715368245511,-5905.7577541,0.000129,2]
[326787043,1715368245521,-2856.18936772,0.00013,2]
[326787207,1715368247052,-1278.22653698,0.00012999,2]
[326787209,1715368247064,-538.95999007,0.00012999,2]
[326788372,1715368269276,1103.33259888,9.671e-05,2]
[326788377,1715369029818,158.24537954,0.00011671,2]
[326788379,1715369123100,225.98513495,0.00011671,2]
[326788380,1715369125373,322.52570113,0.00011671,2]
[326788381,1715369130447,156.06605412,0.00011671,2]
[326788382,1715369233334,9197.2538822,0.00011262,7]
[326788383,1715369235422,178.46,0.00011362,2]
[326788384,1715369288662,1198.39,0.00011263,2]
[326788385,1715369303943,185.53,0.00011263,2]
[326788386,1715369318084,619.05,0.00011188,2]
[326788387,1715369335812,1016.4363,0.0001163,2]
[326788390,1715369378432,250.0,0.00011222,2]
[326788401,1715369435447,-32.96754917,0.00011713,2]
[326788403,1715369435459,-499.2998041,0.00011713,2]
[326788405,1715369435471,-4.76763527,0.00011713,2]
[326788406,1715369435481,-1785.95731473,0.00011714,2]
[326788408,1715369435494,-433.93005714,0.00011714,2]
[326788410,1715369435504,-167.48397602,0.00011715,2]
[326788415,1715369436224,1265.97856805,0.000117,2]
[326788419,1715369439914,-429.29344456,0.00011715,2]
[326788437,1715369440623,-204.22257942,0.00011715,2]
[326788438,1715369440633,-157.96855427,0.00011715,2]
[326788439,1715369440643,-155.0,0.00011715,2]
[326788440,1715369440656,-685.49139582,0.00011716,2]
[326788441,1715369440665,-150.0,0.00011728,2]
[326788442,1715369440674,-532.12194713,0.00011729,2]
[326788443,1715369441447,-1856.5631075,0.00011729,2]
[326788444,1715369441460,-1954.08494537,0.00011729,2]
[326788447,1715369441473,-210.3943,0.00011757,2]
[326788449,1715369441484,-264.3773,0.00011757,2]
[326788451,1715369441495,-259.15,0.00011773,2]
[326788452,1715369441506,-2996.7569,0.00011781,2]
[326788453,1715369441517,-871.72,0.00011781,2]
[326788454,1715369441528,-1059.6838459,0.00011847,2]
[326788455,1715369441538,-1047.24381892,0.00011852,2]
[326788456,1715369441548,-5212.63166477,0.00011855,2]
[326788457,1715369441558,-882.58199019,0.00011855,2]
[326788458,1715369441568,-179.7499629,0.00011856,2]
[326788459,1715369441578,-144403.50510276,0.00011857,2]
[326788460,1715369441587,-13529.44663645,0.00011863,2]
[326788461,1715369441597,-168.12,0.00011868,2]
[326788462,1715369441607,-231.85568172,0.00011878,2]
[326788463,1715369441617,-500.0,0.00011878,2]
[326788464,1715369441627,-155.0,0.00011878,2]
[326788465,1715369441636,-2029.81619606,0.00011878,2]
[326788466,1715369441645,-563.11568634,0.00011878,2]
[326788467,1715369441656,-926.78368675,0.00011878,2]
[326788468,1715369441666,-818.88979131,0.00011879,2]
[326788469,1715369441676,-226.80170749,0.00011879,2]
[326788470,1715369441685,-499.99,0.00011881,2]
[326788471,1715369441695,-173.3,0.0001189,2]
[326788472,1715369441704,-100000.0,0.000119,2]
[326788473,1715369441714,-429.13,0.00011959,2]
[326788474,1715369441723,-1000.0,0.00012,2]
[326788475,1715369441733,-312.71181864,0.00012349,2]
[326788476,1715369441743,-252.12383117,0.000125,2]
[326788477,1715369441752,-619.05,0.00012587,2]
[326788478,1715369441762,-577.36339637,0.00012616,2]
[326788479,1715369441772,-5268.69051153,0.00012616,2]
[326788480,1715369441781,-155.0,0.00012616,2]
[326788481,1715369441791,-509.93788021,0.00012616,2]
[326788482,1715369441800,-3502.08126514,0.00012617,2]
[326788483,1715369441810,-4725.11809052,0.00012617,2]
[326788484,1715369441819,-44685.0377,0.000127,2]
[326788485,1715369441829,-150.0,0.00012724,2]
[326788486,1715369441838,-1500.0,0.00012725,2]
[326788487,1715369441848,-150.0,0.00012725,2]
[326788488,1715369441858,-1500.0,0.00012727,2]
[326788489,1715369441867,-1500.0,0.0001273,2]
[326788490,1715369441877,-150.0,0.00012731,2]
[326788491,1715369441886,-150.0,0.00012731,2]
[326788492,1715369441896,-150.0,0.00012732,2]
[326788493,1715369441907,-150.0,0.00012735,2]
[326788494,1715369441916,-150.0,0.00012735,2]
[326788495,1715369441926,-325.04847566,0.00012735,2]
[326788496,1715369441935,-150.0,0.00012737,2]
[326788497,1715369441944,-300.0,0.00012738,2]
[326788498,1715369441954,-1500.0,0.00012745,2]
[326788499,1715369441963,-150.0,0.00012753,2]
[326788500,1715369441973,-300.0,0.00012753,2]
[326788501,1715369441982,-1500.0,0.00012754,2]
[326788502,1715369441991,-1500.0,0.00012755,2]
[326788503,1715369442001,-150.0,0.00012755,2]
[326788504,1715369442012,-1561.86172371,0.00012761,2]
[326788505,1715369442022,-302.49127361,0.00012767,2]
[326788506,1715369442033,-150.0,0.00012769,2]
[326788507,1715369442044,-150.0,0.00012773,2]
[326788508,1715369442054,-150.0,0.00012774,2]
[326788509,1715369442065,-150.0,0.00012777,2]
[326788510,1715369442076,-150.0,0.00012777,2]
[326788511,1715369442086,-300.0,0.00012777,2]
[326788512,1715369442097,-150.0,0.00012779,2]